bitfinex-derivatives/quotes_BTCF0:USTF0_20251103
["timestamp","ask_amount","ask_price","bid_price","bid_amount"]
[1762189513777,0.16343667,106800.0,106790.0,0.9825015]
[1762189513975,0.09114187,106800.0,106790.0,0.9825015]
[1762189514177,1.59114187,106800.0,106790.0,0.9825015]
[1762189514476,1.59114187,106800.0,106790.0,0.9918715]
[1762189514674,0.03680187,106810.0,106800.0,0.0936548]
[1762189514970,0.03680187,106810.0,106800.0,0.6574027]
[1762189515371,0.0031,106810.0,106800.0,0.6574027]
[1762189515567,0.08052187,106810.0,106800.0,0.4638248]
[1762189515772,0.1404661,106810.0,106800.0,0.9856827]
[1762189516272,0.1414661,106810.0,106800.0,0.66702262]
[1762189516470,0.04782,106810.0,106800.0,0.99526262]
[1762189516674,0.0041,106810.0,106800.0,0.66702262]
[1762189516869,0.0041,106810.0,106800.0,1.3047483]
[1762189517282,0.0041,106810.0,106800.0,1.22930262]
[1762189517984,0.0041,106810.0,106800.0,0.99522262]
[1762189518474,0.1414661,106810.0,106800.0,0.57336782]
[1762189518675,0.1404661,106810.0,106800.0,0.01137]
[1762189518875,0.17416797,106810.0,106800.0,0.33012]
[1762189519373,0.17416797,106810.0,106800.0,0.4237752]
[1762189519575,0.17416797,106810.0,106800.0,0.33012]
[1762189519779,0.17416797,106810.0,106800.0,0.32812]
[1762189519980,0.1404661,106810.0,106800.0,0.32812]
[1762189520181,0.1503152,106800.0,106790.0,0.3608]
[1762189520479,0.1503152,106800.0,106790.0,0.4216648]
[1762189520780,0.5111152,106800.0,106790.0,0.328]
[1762189520974,0.5111152,106800.0,106790.0,0.0936648]
[1762189521167,0.5111152,106800.0,106790.0,0.7824648]
[1762189521168,0.05666,106800.0,106790.0,0.7824648]
[1762189521370,0.05666,106800.0,106790.0,0.91407573]
[1762189522170,0.05666,106800.0,106790.0,0.92344573]
[1762189522375,0.05666,106800.0,106790.0,0.93305552]
[1762189522575,0.1503161,106800.0,106790.0,0.93305552]
[1762189522870,0.05666,106800.0,106790.0,0.93305552]
[1762189523676,0.01294,106800.0,106790.0,0.93305552]
[1762189523979,0.0031,106810.0,106800.0,0.0936561]
[1762189524283,0.02485,106810.0,106800.0,0.59543703]
[1762189524483,0.1503162,106800.0,106790.0,0.79207009]
[1762189524679,0.1503162,106800.0,106790.0,0.57241102]
[1762189524879,0.05666,106800.0,106790.0,0.93321102]
[1762189525081,0.1503162,106800.0,106790.0,0.3628]
[1762189525278,0.1503162,106800.0,106790.0,0.69092]
[1762189525477,0.1503162,106800.0,106790.0,0.4237851]
[1762189525786,0.1503162,106800.0,106790.0,0.33112]
[1762189525986,0.5111162,106800.0,106790.0,0.33112]
[1762189526485,0.5121162,106800.0,106790.0,0.32812]
[1762189527084,0.5121162,106800.0,106790.0,0.4217852]
[1762189527286,0.54581807,106800.0,106790.0,0.4217852]
[1762189527788,0.5121162,106800.0,106790.0,0.4217852]
[1762189528288,0.54581807,106800.0,106790.0,0.421785]
[1762189528478,0.54581807,106800.0,106790.0,0.32812]
[1762189528680,0.18501807,106800.0,106790.0,0.421785]
[1762189528977,0.18501807,106800.0,106790.0,0.32812]
[1762189528978,0.54581807,106800.0,106790.0,0.32812]
[1762189529378,0.54581807,106800.0,106790.0,0.421785]
[1762189529980,0.54581807,106800.0,106790.0,0.32812]
[1762189530188,0.136685,106790.0,106780.0,0.3608]
[1762189530379,0.136685,106790.0,106780.0,0.7824738]
[1762189530886,0.136685,106790.0,106780.0,0.3608]
[1762189531075,0.53267687,106790.0,106780.0,0.4215538]
[1762189531275,0.17187687,106790.0,106780.0,0.4215538]
[1762189531672,0.53267687,106790.0,106780.0,0.4215538]
[1762189531878,0.53267687,106790.0,106780.0,0.32788]
[1762189532293,0.1521737,106780.0,106770.0,0.09376596]
[1762189532582,0.0585,106780.0,106770.0,0.56258689]
[1762189532890,0.0585,106780.0,106770.0,0.92338689]
[1762189533384,0.01399,106780.0,106770.0,0.92338689]
[1762189533786,0.01399,106780.0,106770.0,0.92538689]
[1762189534486,0.10800281,106800.0,106790.0,0.0936649]
[1762189534684,0.20165891,106800.0,106790.0,0.56240583]
[1762189534982,0.20165891,106800.0,106790.0,0.91383583]
[1762189535383,0.18472359,106800.0,106790.0,0.91383583]
[1762189535685,0.18472359,106800.0,106790.0,0.4214249]
[1762189536282,0.0936649,106790.0,106780.0,0.0936737]
[1762189536589,0.53259239,106790.0,106780.0,0.32772]
[1762189536779,0.17179239,106790.0,106780.0,0.7821937]
[1762189536975,0.04451,106790.0,106780.0,0.91380463]
[1762189537286,0.04451,106790.0,106780.0,0.92317463]
[1762189537786,0.1426203,106800.0,106790.0,0.0936649]
[1762189537981,0.1426203,106800.0,106790.0,0.59544583]
[1762189538390,0.2362765,106800.0,106790.0,0.59544583]
[1762189538684,0.09106749,106800.0,106790.0,0.59544583]
[1762189539188,0.18472359,106800.0,106790.0,0.59544583]
[1762189540381,0.2352764,106800.0,106790.0,0.59544583]
[1762189541489,0.18472359,106800.0,106790.0,0.59544583]
[1762189541788,0.06979749,106800.0,106790.0,0.59544583]
[1762189542090,0.18472369,106800.0,106790.0,0.59544583]
[1762189543485,0.5960765,106800.0,106790.0,0.14098093]
[1762189543788,0.59614135,106800.0,106790.0,0.14098093]
[1762189543985,0.23534135,106800.0,106790.0,0.23464583]
[1762189544483,0.20165901,106800.0,106790.0,0.14098093]
[1762189544679,0.20165901,106800.0,106790.0,0.1030349]
[1762189544880,0.10800281,106800.0,106790.0,0.1030349]
[1762189545089,0.08673281,106800.0,106790.0,0.59544583]
[1762189545291,0.23599041,106800.0,106790.0,0.59544583]
[1762189545486,0.1854376,106800.0,106790.0,0.59544583]
[1762189545684,0.1854376,106800.0,106790.0,0.23464583]
[1762189545890,0.1864376,106800.0,106790.0,0.00937]
[1762189546196,0.59779041,106800.0,106790.0,0.33697]
[1762189546494,0.59679041,106800.0,106790.0,0.01137]
[1762189546679,0.5462376,106800.0,106790.0,0.4326349]
[1762189546887,0.5462376,106800.0,106790.0,0.56224583]
[1762189547091,0.5472376,106800.0,106790.0,0.56224583]
[1762189547390,0.5472376,106800.0,106790.0,0.3276]
[1762189547391,0.59779041,106800.0,106790.0,0.3276]
[1762189547596,0.59779041,106800.0,106790.0,0.33697]
[1762189547890,0.59780143,106800.0,106790.0,0.56224583]
[1762189548091,0.54724862,106800.0,106790.0,0.56220583]
[1762189548285,0.54724862,106800.0,106790.0,0.33693]
[1762189548488,0.56410891,106800.0,106790.0,0.4305949]
[1762189548788,0.54725604,106800.0,106790.0,0.4305949]
[1762189549091,0.09279994,106800.0,106790.0,0.92300583]
[1762189549392,0.54725604,106800.0,106790.0,0.46850093]
[1762189549582,0.1520237,106780.0,106770.0,0.6111839]
[1762189549894,0.05835,106780.0,106770.0,0.9387439]
[1762189550189,0.1520237,106780.0,106770.0,0.9481139]
[1762189551786,0.1520237,106780.0,106770.0,1.0966139]
[1762189552194,0.1520237,106780.0,106770.0,1.0986139]
[1762189552793,0.1520237,106780.0,106770.0,1.0966139]
[1762189553490,0.5128237,106780.0,106770.0,0.57918966]
[1762189553886,0.5128237,106780.0,106770.0,0.57906966]
[1762189554088,0.1520237,106780.0,106770.0,0.57906966]
[1762189554590,0.1520237,106780.0,106770.0,0.60408297]
[1762189554796,0.1520237,106780.0,106770.0,0.7356939]
[1762189554987,0.05835,106780.0,106770.0,1.0964939]
[1762189555187,0.1520239,106780.0,106770.0,1.0964939]
[1762189555393,0.1520239,106780.0,106770.0,0.7356939]
[1762189555896,0.1520239,106780.0,106770.0,1.0964939]
[1762189556998,0.1520239,106780.0,106770.0,0.93986966]
[1762189557395,0.5128239,106780.0,106770.0,0.15795356]
[1762189557695,0.59707751,106780.0,106770.0,0.32740356]
[1762189557900,0.59707751,106780.0,106770.0,0.33677356]
[1762189558801,0.5465247,106780.0,106770.0,0.32740356]
[1762189559201,0.5128239,106780.0,106770.0,0.32740356]
[1762189559400,0.5128239,106780.0,106770.0,0.37745295]
[1762189559599,0.5128239,106780.0,106770.0,0.42108606]
[1762189559801,0.5128239,106780.0,106770.0,0.32740356]
[1762189560398,0.5128239,106780.0,106770.0,0.37744996]
[1762189560599,0.5128239,106780.0,106770.0,0.05012996]
[1762189560797,0.64443483,106780.0,106770.0,0.08349682]
[1762189561195,0.87855483,106780.0,106770.0,0.03345042]
[1762189561400,0.64443483,106780.0,106770.0,0.03345042]
[1762189561605,0.8400239,106780.0,106770.0,0.05012996]
[1762189561905,0.8400239,106780.0,106770.0,0.14381266]
[1762189562090,0.8400239,106780.0,106770.0,0.05012996]
[1762189562307,0.5128239,106780.0,106770.0,0.14381266]
[1762189562602,0.5128239,106780.0,106770.0,0.10076626]
[1762189563190,0.5158239,106780.0,106770.0,0.55253719]
[1762189563506,0.06135,106780.0,106770.0,1.13813056]
[1762189564203,0.06135,106780.0,106770.0,1.07120719]
[1762189564897,0.03643,106780.0,106770.0,1.07120719]
[1762189565099,0.04486,106790.0,106780.0,0.0936711]
[1762189565300,0.04486,106790.0,106780.0,0.96316645]
[1762189565505,0.04486,106790.0,106780.0,0.97253645]
[1762189565702,0.1385249,106790.0,106780.0,0.97253645]
[1762189566007,0.04486,106790.0,106780.0,0.97253645]
[1762189566503,0.03588,106800.0,106790.0,0.0936649]
[1762189566702,0.01294,106800.0,106790.0,0.64535899]
[1762189567197,0.1295362,106800.0,106790.0,0.67863033]
[1762189567505,0.1514562,106800.0,106790.0,0.67863033]
[1762189567706,0.1514562,106800.0,106790.0,0.62871717]
[1762189567905,0.0578,106800.0,106790.0,0.62871717]
[1762189568102,0.01294,106800.0,106790.0,0.67863033]
[1762189568297,0.1065962,106800.0,106790.0,0.53505227]
[1762189568498,0.5122562,106800.0,106790.0,0.04264134]
[1762189568701,0.1514562,106800.0,106790.0,0.46338624]
[1762189568900,0.1544562,106800.0,106790.0,0.46338624]
[1762189569208,0.1544562,106800.0,106790.0,0.48831471]
[1762189569705,0.01594,106800.0,106790.0,0.95579717]
[1762189570208,0.1544562,106800.0,106790.0,0.82418624]
[1762189570396,0.1544562,106800.0,106790.0,0.95579717]
[1762189570903,0.0608,106800.0,106790.0,0.95579717]
[1762189571208,0.01594,106800.0,106790.0,0.95579717]
[1762189571900,0.01594,106800.0,106790.0,0.9894492]
[1762189572104,0.003,106800.0,106790.0,0.9894492]
[1762189572500,0.1101461,106800.0,106790.0,0.9894492]
[1762189572912,0.1071461,106800.0,106790.0,0.9894492]
[1762189573210,0.1071461,106800.0,106790.0,0.9914092]
[1762189573410,0.1071461,106800.0,106790.0,0.92448583]
[1762189573607,0.01349,106800.0,106790.0,0.92448583]
[1762189573910,0.1071462,106800.0,106790.0,0.92448583]
[1762189574106,0.1071462,106800.0,106790.0,0.59744583]
[1762189574307,0.1071462,106800.0,106790.0,0.92448583]
[1762189574898,0.1300862,106800.0,106790.0,0.59744583]
[1762189575113,0.1515662,106800.0,106790.0,0.37217]
[1762189575416,0.1515662,106800.0,106790.0,0.97421609]
[1762189577107,0.1515662,106800.0,106790.0,0.64717609]
[1762189577305,0.1515662,106800.0,106790.0,0.97421609]
[1762189577508,0.05791,106800.0,106790.0,0.97421609]
[1762189577907,0.01349,106800.0,106790.0,0.97421609]
[1762189578107,0.01349,106800.0,106790.0,0.92448583]
[1762189578307,0.03481,106800.0,106790.0,0.92448583]
[1762189578711,0.01349,106800.0,106790.0,0.92448583]
[1762189578914,0.03481,106800.0,106790.0,0.92448583]
[1762189579116,0.1499461,106800.0,106790.0,0.92448583]
[1762189579314,0.01349,106800.0,106790.0,0.92448583]
[1762189579613,0.05629,106800.0,106790.0,0.92448583]
[1762189579818,0.1499461,106800.0,106790.0,0.92448583]
[1762189580113,0.05629,106800.0,106790.0,0.97419998]
[1762189580817,0.1284661,106800.0,106790.0,0.97419998]
[1762189581116,0.1499461,106800.0,106790.0,0.97419998]
[1762189581715,0.01349,106800.0,106790.0,0.97419998]
[1762189582215,0.01349,106800.0,106790.0,0.92448583]
[1762189582415,0.01349,106800.0,106790.0,1.0355388]
[1762189582621,0.1318935,106810.0,106800.0,0.0936562]
[1762189582808,0.1533735,106810.0,106800.0,0.70648854]
[1762189583118,0.1533735,106810.0,106800.0,0.51351842]
[1762189583319,0.1533735,106810.0,106800.0,0.52309229]
[1762189583910,0.1543735,106810.0,106800.0,0.67159229]
[1762189584110,0.1543735,106810.0,106800.0,0.86456241]
[1762189584619,0.1543735,106810.0,106800.0,0.67159229]
[1762189585918,0.1543735,106810.0,106800.0,0.86456241]
[1762189586418,0.1543735,106810.0,106800.0,0.67159229]
[1762189586618,0.0041,106810.0,106800.0,0.81487019]
[1762189586922,0.0041,106810.0,106800.0,0.88179356]
[1762189587316,0.01792,106810.0,106800.0,0.81487019]
[1762189587716,0.01792,106810.0,106800.0,0.88179356]
[1762189587909,0.0041,106810.0,106800.0,0.88179356]
[1762189588114,0.0041,106810.0,106800.0,1.11587356]
[1762189588723,0.1559081,106810.0,106800.0,0.78813736]
[1762189588921,0.1559081,106810.0,106800.0,1.01582414]
[1762189589122,0.0179,106810.0,106800.0,1.01582414]
[1762189589421,0.0179,106810.0,106800.0,1.20879426]
[1762189590121,0.0041,106810.0,106800.0,1.20879426]
[1762189590722,0.0041,106810.0,106800.0,1.44287426]
[1762189590923,0.0041,106810.0,106800.0,1.37595089]
[1762189592018,0.0179,106810.0,106800.0,1.37595089]
[1762189592221,0.0179,106810.0,106800.0,1.2083478]
[1762189592415,0.05816,106820.0,106810.0,0.1172381]
[1762189592621,0.05816,106820.0,106810.0,0.67100822]
[1762189592821,0.1517993,106820.0,106810.0,0.67100822]
[1762189593214,0.1517993,106820.0,106810.0,0.4780381]
[1762189593827,0.1517993,106820.0,106810.0,0.8049981]
[1762189594024,0.1517993,106820.0,106810.0,0.468668]
[1762189594329,0.1517993,106820.0,106810.0,0.70198]
[1762189594524,0.1517993,106820.0,106810.0,0.34118]
[1762189594729,0.5125993,106820.0,106810.0,0.34118]
[1762189595028,0.5125993,106820.0,106810.0,0.32696]
[1762189595232,0.151808,106810.0,106800.0,0.16272]
[1762189595527,0.52221718,106810.0,106800.0,0.33403]
[1762189595726,0.512608,106810.0,106800.0,0.34114]
[1762189595918,0.512608,106810.0,106800.0,0.4347968]
[1762189596117,0.1518081,106810.0,106800.0,0.86207371]
[1762189596317,0.1518081,106810.0,106800.0,0.40761691]
[1762189596524,0.1528081,106810.0,106800.0,0.40761691]
[1762189596725,0.5136081,106810.0,106800.0,0.34114]
[1762189597032,0.1528081,106810.0,106800.0,0.4347968]
[1762189597233,0.05916,106810.0,106800.0,0.86207371]
[1762189597418,0.05916,106810.0,106800.0,0.87144371]
[1762189598419,0.05916,106810.0,106800.0,1.06441383]
[1762189598625,0.1518081,106810.0,106800.0,1.06441383]
[1762189598825,0.1518081,106810.0,106800.0,0.87244371]
[1762189599025,0.05816,106810.0,106800.0,0.87244371]
[1762189599227,0.1517997,106820.0,106810.0,0.1078685]
[1762189599436,0.05816,106820.0,106810.0,0.73762883]
[1762189599836,0.5126166,106830.0,106820.0,0.1078598]
[1762189600040,0.1518166,106830.0,106820.0,0.84556424]
[1762189600345,0.1518166,106830.0,106820.0,0.7955798]
[1762189600642,0.1518166,106830.0,106820.0,0.8455799]
[1762189600944,0.128551,106830.0,106820.0,1.04792002]
[1762189601335,0.128551,106830.0,106820.0,0.99791992]
[1762189601537,0.151811,106830.0,106820.0,0.99791992]
[1762189602440,0.151811,106830.0,106820.0,0.71131]
[1762189602631,0.151811,106830.0,106820.0,0.33403]
[1762189602946,0.151811,106830.0,106810.0,0.08084021]
[1762189602947,0.1379998,106820.0,106810.0,0.08084021]
[1762189603137,0.1379998,106820.0,106810.0,0.41713021]
[1762189603339,0.1379998,106820.0,106810.0,0.87157871]
[1762189604143,0.1379998,106820.0,106810.0,0.51077871]
[1762189604544,0.1379998,106820.0,106810.0,0.4441585]
[1762189604933,0.0936485,106810.0,106800.0,0.16027721]
[1762189605137,0.1360573,106800.0,106790.0,0.1078837]
[1762189605338,0.1360573,106800.0,106790.0,0.87900445]
[1762189605544,0.1360573,106800.0,106790.0,0.8049761]
[1762189605838,0.1360573,106800.0,106790.0,0.51090318]
[1762189606244,0.1360573,106800.0,106790.0,0.87170318]
[1762189606546,0.0424,106800.0,106790.0,0.8049761]
[1762189606741,0.0424,106800.0,106790.0,0.8069761]
[1762189607040,0.1393273,106800.0,106790.0,0.8069761]
[1762189607444,0.04567,106800.0,106790.0,0.8069761]
[1762189607643,0.00327,106800.0,106790.0,0.8069761]
[1762189607951,0.00327,106800.0,106790.0,1.08334697]
[1762189608442,0.00327,106800.0,106790.0,1.08134697]
[1762189608747,0.00327,106800.0,106790.0,1.08234697]
[1762189609247,0.00327,106800.0,106790.0,1.08134697]
[1762189609545,0.00327,106800.0,106790.0,1.08334697]
[1762189609846,0.00327,106800.0,106790.0,0.88837685]
[1762189610145,0.00327,106800.0,106790.0,1.08334697]
[1762189610447,0.00327,106800.0,106790.0,1.23184697]
[1762189612443,0.00327,106800.0,106790.0,1.22984697]
[1762189612645,0.00327,106800.0,106790.0,1.23184697]
[1762189614139,0.00327,106800.0,106790.0,1.14844622]
[1762189614337,0.1108998,106810.0,106800.0,0.02133]
[1762189614338,0.00405,106810.0,106800.0,0.02133]
[1762189614543,0.0556,106840.0,106830.0,0.01422]
[1762189614836,0.0556,106840.0,106830.0,0.40052942]
[1762189615041,0.0556,106840.0,106830.0,0.67776054]
[1762189615741,0.0556,106840.0,106830.0,0.49413093]
[1762189616350,0.0596,106840.0,106830.0,0.68710105]
[1762189616948,0.0596,106840.0,106830.0,0.40049993]
[1762189617141,0.4204,106840.0,106830.0,0.39115942]
[1762189618253,0.375,106840.0,106830.0,0.03336151]
[1762189618459,0.4174,106840.0,106830.0,0.03336151]
[1762189618754,0.4164,106840.0,106830.0,0.03336151]
[1762189618958,0.0424,106840.0,106830.0,0.41081942]
[1762189619147,0.0556,106840.0,106830.0,0.41081942]
[1762189619759,0.0556,106840.0,106830.0,0.87325022]
[1762189620049,0.0556,106840.0,106830.0,0.80232942]
[1762189620248,0.0556,106840.0,106830.0,0.89596022]
[1762189620554,0.0556,106840.0,106830.0,0.80232942]
[1762189620752,0.0556,106840.0,106830.0,0.91922022]
[1762189621052,0.0556,106840.0,106830.0,1.16989338]
[1762189621247,0.0556,106840.0,106830.0,1.09520082]
[1762189621248,0.0576,106840.0,106830.0,1.09520082]
[1762189621646,0.0576,106840.0,106830.0,1.16189338]
[1762189622245,0.0556,106840.0,106830.0,1.16189338]
[1762189622448,0.149222,106840.0,106830.0,1.16189338]
[1762189622655,0.149222,106840.0,106830.0,1.06826258]
[1762189622848,0.149222,106840.0,106830.0,1.00157002]
[1762189623048,0.149222,106840.0,106830.0,1.00561952]
[1762189623253,0.149222,106840.0,106830.0,0.7716195]
[1762189623553,0.149222,106840.0,106830.0,0.44416525]
[1762189623752,0.34219212,106840.0,106830.0,0.44416525]
[1762189623953,1.26387212,106840.0,106830.0,5e-08]
[1762189624256,0.1360308,106830.0,106820.0,0.0500195]
[1762189624456,0.32900092,106830.0,106820.0,0.0500195]
[1762189624656,0.0424,106820.0,106810.0,0.41081531]
[1762189625146,0.56225012,106820.0,106810.0,0.41081531]
[1762189625350,0.56225012,106820.0,106810.0,0.05001531]
[1762189625547,0.80578015,106820.0,106810.0,0.05001531]
[1762189625752,1.16658015,106820.0,106810.0,0.05001531]
[1762189625955,1.16658015,106820.0,106810.0,0.01501531]
[1762189626156,0.0424,106810.0,106800.0,0.3608]
[1762189626452,0.04607,106800.0,106790.0,0.47346256]
[1762189628656,0.04607,106800.0,106790.0,0.47546256]
[1762189629658,0.0424,106800.0,106790.0,0.47546256]
[1762189630160,0.0424,106800.0,106790.0,0.56912826]
[1762189630457,0.0424,106800.0,106790.0,0.47546256]
[1762189631355,0.0424,106800.0,106790.0,0.45220256]
[1762189631550,0.4629771,106800.0,106790.0,0.42949256]
[1762189632149,0.4629771,106800.0,106790.0,0.45220256]
[1762189632752,0.4629771,106800.0,106790.0,0.56912826]
[1762189632955,0.1360571,106800.0,106790.0,0.47546256]
[1762189633856,0.1360571,106800.0,106790.0,0.40877]
[1762189634158,0.1360571,106800.0,106790.0,0.49217075]
[1762189634558,0.1360571,106800.0,106790.0,0.47545489]
[1762189635549,0.1360571,106800.0,106790.0,0.56911989]
[1762189635753,0.1360571,106800.0,106790.0,0.80311991]
[1762189635950,0.1360571,106800.0,106790.0,0.47545489]
[1762189636153,0.1360571,106800.0,106790.0,0.70945491]
[1762189636661,0.1360571,106800.0,106790.0,0.71882491]
[1762189637250,0.1360571,106800.0,106790.0,0.73179491]
[1762189637654,0.1492571,106800.0,106790.0,0.47545489]
[1762189637858,0.1492571,106800.0,106790.0,0.42948489]
[1762189638160,0.1492571,106800.0,106790.0,0.45159489]
[1762189638362,0.1492571,106800.0,106790.0,0.47314489]
[1762189638856,0.1492571,106800.0,106790.0,0.48611489]
[1762189640060,0.1360571,106800.0,106790.0,0.48611489]
[1762189640460,0.1488571,106800.0,106790.0,0.49548489]
[1762189640654,0.1488571,106800.0,106790.0,0.72948491]
[1762189641159,0.1360571,106800.0,106790.0,0.72948491]
[1762189641360,0.1360571,106800.0,106790.0,0.49548489]
[1762189641561,0.1488571,106800.0,106790.0,0.4288]
[1762189641760,0.1488571,106800.0,106790.0,0.66280002]
[1762189643252,0.1360571,106800.0,106790.0,0.66280002]
[1762189644766,0.1488571,106800.0,106790.0,0.41583]
[1762189645466,0.1488571,106800.0,106790.0,0.4288]
[1762189646057,0.51456912,106800.0,106790.0,0.40646]
[1762189646360,0.1488571,106800.0,106790.0,0.40646]
[1762189646562,0.28048912,106800.0,106790.0,0.3628]
[1762189646761,0.1488571,106800.0,106790.0,0.40646]
[1762189647563,0.1488571,106800.0,106790.0,0.41963]
[1762189648866,0.1360571,106800.0,106790.0,0.41963]
[1762189649368,0.1360571,106800.0,106790.0,0.42563]
[1762189650963,0.1360571,106800.0,106790.0,0.76266422]
[1762189651362,0.4664684,106810.0,106800.0,0.1514054]
[1762189651565,0.4664684,106810.0,106800.0,0.5215754]
[1762189651764,0.32692,106810.0,106800.0,0.88720744]
[1762189651962,0.13953,106830.0,106820.0,0.05775]
[1762189652279,0.13953,106830.0,106820.0,0.5215583]
[1762189652460,0.13953,106830.0,106820.0,0.86079737]
[1762189652766,0.4205445,106840.0,106830.0,0.1513795]
[1762189652966,0.4205445,106840.0,106830.0,1.18770857]
[1762189653672,0.0936245,106840.0,106830.0,1.18770857]
[1762189653965,0.11887539,106850.0,106840.0,0.1382007]
[1762189654270,0.11887539,106850.0,106840.0,0.84760977]
[1762189654271,0.0936198,106850.0,106840.0,0.84760977]
[1762189654470,0.0936198,106850.0,106840.0,0.74237072]
[1762189655169,0.0936198,106850.0,106840.0,0.65575002]
[1762189655759,0.1395198,106850.0,106840.0,0.65575002]
[1762189655966,0.1395198,106850.0,106840.0,0.41238]
[1762189655967,0.29627252,106850.0,106840.0,0.41238]
[1762189656866,0.32997332,106850.0,106840.0,0.3678]
[1762189657068,0.32997332,106850.0,106840.0,0.41238]
[1762189657263,0.19847619,106850.0,106840.0,0.41238]
[1762189657567,0.29627252,106850.0,106840.0,0.41238]
[1762189657771,0.14166539,106850.0,106840.0,0.65575002]
[1762189657962,0.0936198,106850.0,106840.0,0.65575002]
[1762189658165,0.0936198,106850.0,106840.0,0.65375002]
[1762189658569,0.1164098,106850.0,106840.0,0.65375002]
[1762189658868,0.1395198,106850.0,106840.0,0.65575002]
[1762189659868,0.16477539,106850.0,106840.0,0.65575002]
[1762189660072,0.29627252,106850.0,106840.0,0.65575002]
[1762189660272,0.27101693,106850.0,106840.0,0.44575989]
[1762189662264,0.27101693,106850.0,106840.0,0.41238]
[1762189662466,0.0936117,106850.0,106840.0,0.86966444]
[1762189662773,0.0936032,106860.0,106840.0,0.86966444]
[1762189662774,0.14893191,106870.0,106860.0,0.04458]
[1762189663071,0.14893191,106870.0,106860.0,0.40538]
[1762189663373,0.47617191,106870.0,106860.0,0.40538]
[1762189664666,0.47617191,106870.0,106860.0,0.42238]
[1762189665672,0.60766904,106870.0,106860.0,0.42238]
[1762189666068,0.47605191,106870.0,106860.0,0.43175]
[1762189666573,0.47597191,106870.0,106860.0,0.43175]
[1762189666767,0.14893191,106870.0,106860.0,0.42238]
[1762189666968,0.47593191,106870.0,106860.0,0.42238]
[1762189667170,0.28042904,106870.0,106860.0,0.42238]
[1762189667370,0.60742904,106870.0,106860.0,0.42238]
[1762189667774,0.1372415,106850.0,106840.0,0.43680989]
[1762189667981,0.4642415,106850.0,106840.0,0.63743002]
[1762189668276,0.4642415,106850.0,106840.0,0.64680002]
[1762189668974,0.59532904,106870.0,106840.0,0.64680002]
[1762189669176,0.4642392,106860.0,106850.0,0.4128]
[1762189669378,0.4760692,106860.0,106850.0,0.4128]
[1762189669573,0.60756633,106860.0,106850.0,0.4128]
[1762189670280,0.4642392,106860.0,106850.0,0.4128]
[1762189670778,0.59573633,106860.0,106850.0,0.4128]
[1762189671679,0.4642392,106860.0,106850.0,0.4128]
[1762189672273,0.4642392,106860.0,106850.0,0.42563]
[1762189672580,0.59573633,106860.0,106850.0,0.42563]
[1762189672778,0.59573633,106860.0,106850.0,0.43263]
[1762189673082,0.1512315,106850.0,106840.0,0.38226]
[1762189673280,0.28272863,106850.0,106840.0,0.4128]
[1762189673483,0.28272863,106850.0,106840.0,0.64680002]
[1762189674780,0.1512315,106850.0,106840.0,0.64680002]
[1762189675381,0.1512315,106850.0,106840.0,0.65180002]
[1762189677075,0.1512315,106850.0,106840.0,0.4178]
[1762189677279,0.28272863,106850.0,106840.0,0.4178]
[1762189677478,0.28272863,106850.0,106840.0,0.40843]
[1762189678180,0.28272863,106850.0,106840.0,0.04763]
[1762189679785,0.28272863,106850.0,106840.0,0.005]
[1762189679986,0.28272863,106850.0,106840.0,0.02646]
[1762189680682,0.28272863,106850.0,106840.0,0.03583]
[1762189680884,0.51672863,106850.0,106840.0,0.04763]
[1762189681077,0.60944863,106850.0,106840.0,0.005]
[1762189681476,0.60944863,106850.0,106840.0,0.04763]
[1762189681684,0.4779515,106850.0,106840.0,0.04763]
[1762189682183,0.4779515,106850.0,106840.0,0.057]
[1762189682491,0.4779515,106850.0,106840.0,0.06983]
[1762189682683,0.1512315,106850.0,106840.0,0.45900989]
[1762189682985,0.4203315,106850.0,106840.0,0.74507189]
[1762189683288,0.4203315,106850.0,106840.0,0.83869259]
[1762189683481,0.4203315,106850.0,106840.0,0.74307189]
[1762189683679,0.4203315,106850.0,106840.0,0.74704671]
[1762189684079,0.4203315,106850.0,106840.0,0.8073127]
[1762189684274,0.4203315,106850.0,106840.0,0.8033127]
[1762189684479,0.4243315,106850.0,106840.0,0.8033127]
[1762189684889,0.0976115,106850.0,106840.0,0.8033127]
[1762189685186,0.4243315,106850.0,106840.0,0.709692]
[1762189685788,0.4457815,106850.0,106840.0,0.709692]
[1762189686091,0.84744863,106850.0,106840.0,0.44421948]
[1762189686287,0.1512407,106840.0,106830.0,0.09269198]
[1762189686584,0.1512407,106840.0,106820.0,0.37397]
[1762189686585,0.1512495,106830.0,106820.0,0.04263]
[1762189686776,0.60946663,106830.0,106820.0,0.052]
[1762189687278,0.4779695,106830.0,106820.0,0.4128]
[1762189687478,0.4779695,106830.0,106820.0,0.052]
[1762189687682,0.60946663,106830.0,106820.0,0.052]
[1762189687887,0.60946663,106830.0,106820.0,0.4128]
[1762189688186,0.60946663,106830.0,106820.0,0.052]
[1762189688383,0.4779695,106830.0,106820.0,0.4128]
[1762189689092,0.1512495,106830.0,106820.0,0.4128]
[1762189689292,0.4829695,106830.0,106820.0,0.4128]
[1762189690289,0.4830095,106830.0,106820.0,0.4128]
[1762189691488,0.1422595,106830.0,106820.0,0.64680002]
[1762189691789,0.005,106830.0,106820.0,0.93862034]
[1762189691986,0.0986295,106830.0,106820.0,0.93862034]
[1762189692185,0.005,106830.0,106820.0,0.95145034]
[1762189692680,0.005,106830.0,106820.0,0.88476545]
[1762189692884,0.4203867,106840.0,106820.0,0.95145034]
[1762189693087,0.0936267,106840.0,106830.0,0.75147952]
[1762189693281,0.0936207,106840.0,106830.0,0.70884952]
[1762189693489,0.0936207,106840.0,106830.0,0.75147952]
[1762189694086,0.0936207,106840.0,106830.0,0.65785002]
[1762189694282,0.0936207,106840.0,106830.0,0.75147952]
[1762189694490,0.4343624,106850.0,106840.0,0.01283]
[1762189694491,0.0936193,106850.0,106840.0,0.01283]
[1762189694693,0.4203793,106850.0,106840.0,0.66089002]
[1762189695091,0.4429193,106850.0,106840.0,0.75451072]
[1762189695590,0.0936193,106850.0,106840.0,0.66089002]
[1762189695986,0.1161593,106850.0,106840.0,0.67008125]
[1762189696688,0.1191593,106850.0,106840.0,0.67008125]
[1762189697681,0.1191593,106850.0,106840.0,0.76370195]
[1762189697682,0.0966193,106850.0,106840.0,0.76370195]
[1762189697986,0.0966193,106850.0,106840.0,0.89519908]
[1762189698891,0.003,106850.0,106840.0,0.89519908]
[1762189699096,0.0966115,106850.0,106840.0,0.89519908]
[1762189700197,0.0966115,106850.0,106840.0,0.80157838]
[1762189700491,0.0966115,106850.0,106840.0,0.67008125]
[1762189700791,0.1405815,106850.0,106840.0,0.66089002]
[1762189701491,0.0966115,106850.0,106840.0,0.66089002]